[Event "Titled Tuesday Blitz March 08 Early 2022"]
[White "Bulmaga, Irina"]
[Black "Samaganova, Aleksandra"]
[WhiteFideId "13903063"]
[BlackFideId "13800221"]
[WhiteElo "2184"]
[BlackElo "1859"]
[Result "1-0"]
[Round "04"]
[TimeControl "180+1"]
[Date "2022.03.09"]
[WhiteClock "0:00:17"]
[BlackClock "0:00:04"]

1. e4 {[%clk 0:03:00]}  c5 {[%clk 0:02:58]} 2. d4 {[%clk 0:02:58]}  cxd4 {[%clk 0:02:56]} 3. Nf3 {[%clk 0:02:57]}  e6 {[%clk 0:02:36]} 4. Nxd4 {[%clk 0:02:52]}  a6 {[%clk 0:02:35]} 5. c4 {[%clk 0:02:49]}  Qc7 {[%clk 0:02:34]} 6. Nc3 {[%clk 0:02:48]}  Nf6 {[%clk 0:02:33]} 7. Bd3 {[%clk 0:02:47]}  Bb4 {[%clk 0:02:26]} 8. O-O {[%clk 0:02:46]}  Bxc3 {[%clk 0:02:25]} 9. bxc3 {[%clk 0:02:45]}  O-O {[%clk 0:02:25]} 10. a4 {[%clk 0:02:31]}  d5 {[%clk 0:02:19]} 11. exd5 {[%clk 0:02:26]}  exd5 {[%clk 0:02:18]} 12. Qf3 {[%clk 0:01:57]}  Bg4 {[%clk 0:02:07]} 13. Qf4 {[%clk 0:01:51]}  Qxf4 {[%clk 0:02:03]} 14. Bxf4 {[%clk 0:01:52]}  dxc4 {[%clk 0:02:03]} 15. Bxc4 {[%clk 0:01:41]}  Rc8 {[%clk 0:01:57]} 16. Bb3 {[%clk 0:01:37]}  Nc6 {[%clk 0:01:49]} 17. f3 {[%clk 0:01:33]}  Bh5 {[%clk 0:01:41]} 18. g4 {[%clk 0:01:26]}  Bg6 {[%clk 0:01:40]} 19. g5 {[%clk 0:01:26]}  Nh5 {[%clk 0:01:36]} 20. Bd6 {[%clk 0:01:25]}  Rd8 {[%clk 0:01:16]} 21. Bc5 {[%clk 0:01:19]}  Nf4 {[%clk 0:01:09]} 22. Bb6 {[%clk 0:01:16]}  Nxd4 {[%clk 0:01:01]} 23. cxd4 {[%clk 0:01:12]}  Rd7 {[%clk 0:00:58]} 24. Rfe1 {[%clk 0:01:10]}  Nh3+ {[%clk 0:00:48]} 25. Kg2 {[%clk 0:01:07]}  Nxg5 {[%clk 0:00:49]} 26. h4 {[%clk 0:01:03]}  Ne6 {[%clk 0:00:45]} 27. Rxe6 {[%clk 0:01:02]}  fxe6 {[%clk 0:00:45]} 28. Bxe6+ {[%clk 0:01:02]}  Rf7 {[%clk 0:00:42]} 29. Rc1 {[%clk 0:01:02]}  Re8 {[%clk 0:00:33]} 30. Bb3 {[%clk 0:00:40]}  Kh8 {[%clk 0:00:28]} 31. Bxf7 {[%clk 0:00:40]}  Bxf7 {[%clk 0:00:29]} 32. Rc7 {[%clk 0:00:37]}  Bd5 {[%clk 0:00:29]} 33. Rd7 {[%clk 0:00:34]}  Bc6 {[%clk 0:00:29]} 34. Rf7 {[%clk 0:00:29]}  Kg8 {[%clk 0:00:23]} 35. Rf4 {[%clk 0:00:19]}  Re2+ {[%clk 0:00:17]} 36. Kg3 {[%clk 0:00:19]}  Rd2 {[%clk 0:00:17]} 37. a5 {[%clk 0:00:19]}  h6 {[%clk 0:00:15]} 38. Kg4 {[%clk 0:00:18]}  Kh7 {[%clk 0:00:09]} 39. Kf5 {[%clk 0:00:17]}  Rd3 {[%clk 0:00:05]} 40. Ke6 {[%clk 0:00:16]}  Kg6 {[%clk 0:00:03]} 41. Re4 {[%clk 0:00:14]}  Bxe4 {[%clk 0:00:02]} 42. fxe4 {[%clk 0:00:14]}  Re3 {[%clk 0:00:02]} 43. e5 {[%clk 0:00:14]}  Rd3 {[%clk 0:00:02]} 44. d5 {[%clk 0:00:15]}  h5 {[%clk 0:00:02]} 45. d6 {[%clk 0:00:15]}  Kh7 {[%clk 0:00:01]} 46. d7 {[%clk 0:00:16]}  g5 {[%clk 0:00:01]} 47. d8=Q {[%clk 0:00:14]}  Rxd8 {[%clk 0:00:02]} 48. Bxd8 {[%clk 0:00:15]}  gxh4 {[%clk 0:00:02]} 49. Bxh4 {[%clk 0:00:15]}  Kg6 {[%clk 0:00:03]} 50. Kd7 {[%clk 0:00:15]}  Kf5 {[%clk 0:00:03]} 51. e6 {[%clk 0:00:16]}  Kg4 {[%clk 0:00:03]} 52. Be1 {[%clk 0:00:16]}  h4 {[%clk 0:00:03]} 53. Bxh4 {[%clk 0:00:16]}  Kxh4 {[%clk 0:00:04]} 54. e7 {[%clk 0:00:17]} 1-0


[Site "https://www.chess.com"]

[Event "Titled Tuesday Blitz March 08 Early 2022"]
[White "Bures, Vit"]
[Black "Kushko, Dmitriy"]
[WhiteFideId "309052"]
[BlackFideId "14162261"]
[WhiteElo "2118"]
[BlackElo "2225"]
[Result "0-1"]
[Round "04"]
[TimeControl "180+1"]
[Date "2022.03.09"]
[WhiteClock "0:01:44"]
[BlackClock "0:01:21"]

1. Nf3 {[%clk 0:02:44]}  g6 {[%clk 0:02:58]} 2. d4 {[%clk 0:02:42]}  Nf6 {[%clk 0:02:56]} 3. c4 {[%clk 0:02:39]}  Bg7 {[%clk 0:02:56]} 4. Nc3 {[%clk 0:02:39]}  O-O {[%clk 0:02:56]} 5. e4 {[%clk 0:02:39]}  d6 {[%clk 0:02:56]} 6. Be2 {[%clk 0:02:39]}  e5 {[%clk 0:02:57]} 7. O-O {[%clk 0:02:37]}  Nc6 {[%clk 0:02:56]} 8. d5 {[%clk 0:02:37]}  Ne7 {[%clk 0:02:56]} 9. b4 {[%clk 0:02:35]}  Nh5 {[%clk 0:02:55]} 10. Re1 {[%clk 0:02:34]}  a5 {[%clk 0:02:50]} 11. Ba3 {[%clk 0:02:32]}  Nf4 {[%clk 0:02:47]} 12. Bf1 {[%clk 0:02:31]}  axb4 {[%clk 0:02:46]} 13. Bxb4 {[%clk 0:02:30]}  Bg4 {[%clk 0:02:47]} 14. h3 {[%clk 0:02:27]}  Bxf3 {[%clk 0:02:47]} 15. Qxf3 {[%clk 0:02:25]}  c5 {[%clk 0:02:47]} 16. dxc6 {[%clk 0:02:19]}  Nxc6 {[%clk 0:02:47]} 17. Rab1 {[%clk 0:02:13]}  Ne6 {[%clk 0:02:44]} 18. Nb5 {[%clk 0:02:10]}  Nxb4 {[%clk 0:02:34]} 19. Rxb4 {[%clk 0:02:11]}  Rxa2 {[%clk 0:02:30]} 20. Rd1 {[%clk 0:02:11]}  Qa5 {[%clk 0:01:55]} 21. Qb3 {[%clk 0:02:07]}  Nc5 {[%clk 0:01:52]} 22. Qb1 {[%clk 0:02:03]}  Nxe4 {[%clk 0:01:47]} 23. Nxd6 {[%clk 0:02:01]}  Nc3 {[%clk 0:01:29]} 24. Rb5 {[%clk 0:01:48]}  Qa7 {[%clk 0:01:22]} 25. Rxb7 {[%clk 0:01:44]}  Qxf2+ {[%clk 0:01:21]} 0-1


[Site "https://www.chess.com"]

[Event "Titled Tuesday Blitz March 08 Early 2022"]
[White "Cori T., Deysi"]
[Black "Derraugh, Geordie"]
[WhiteFideId "3801934"]
[BlackFideId "2603950"]
[WhiteElo "2341"]
[BlackElo "2116"]
[Result "1-0"]
[Round "04"]
[TimeControl "180+1"]
[Date "2022.03.09"]
[WhiteClock "0:00:29"]
[BlackClock "0:00:01"]

1. d4 {[%clk 0:03:00]}  Nf6 {[%clk 0:02:58]} 2. Nf3 {[%clk 0:02:58]}  g6 {[%clk 0:02:57]} 3. g3 {[%clk 0:02:56]}  Bg7 {[%clk 0:02:57]} 4. Bg2 {[%clk 0:02:55]}  O-O {[%clk 0:02:58]} 5. O-O {[%clk 0:02:54]}  d5 {[%clk 0:02:58]} 6. Ne5 {[%clk 0:02:51]}  Ng4 {[%clk 0:02:54]} 7. Nxg4 {[%clk 0:02:48]}  Bxg4 {[%clk 0:02:54]} 8. c4 {[%clk 0:02:48]}  c6 {[%clk 0:02:54]} 9. cxd5 {[%clk 0:02:48]}  cxd5 {[%clk 0:02:54]} 10. Nc3 {[%clk 0:02:49]}  Nc6 {[%clk 0:02:50]} 11. Be3 {[%clk 0:02:42]}  Be6 {[%clk 0:02:49]} 12. Rc1 {[%clk 0:02:40]}  Qb6 {[%clk 0:02:46]} 13. Na4 {[%clk 0:02:39]}  Qa5 {[%clk 0:02:44]} 14. Nc5 {[%clk 0:02:35]}  Qxa2 {[%clk 0:02:40]} 15. Qd2 {[%clk 0:01:52]}  Qa5 {[%clk 0:02:12]} 16. Rfd1 {[%clk 0:01:39]}  Qb6 {[%clk 0:01:44]} 17. Nxe6 {[%clk 0:01:28]}  fxe6 {[%clk 0:01:43]} 18. Bh3 {[%clk 0:01:29]}  Nd8 {[%clk 0:01:00]} 19. Rc5 {[%clk 0:01:25]}  Nf7 {[%clk 0:00:51]} 20. Rdc1 {[%clk 0:01:19]}  Rad8 {[%clk 0:00:50]} 21. b4 {[%clk 0:00:54]}  e5 {[%clk 0:00:32]} 22. dxe5 {[%clk 0:00:52]}  d4 {[%clk 0:00:32]} 23. Bf4 {[%clk 0:00:50]}  g5 {[%clk 0:00:25]} 24. Bxg5 {[%clk 0:00:48]}  Nxg5 {[%clk 0:00:15]} 25. Qxg5 {[%clk 0:00:48]}  Qxb4 {[%clk 0:00:13]} 26. Be6+ {[%clk 0:00:43]}  Kh8 {[%clk 0:00:12]} 27. Bf5 {[%clk 0:00:42]}  Qb6 {[%clk 0:00:06]} 28. Bd3 {[%clk 0:00:36]}  Bh6 {[%clk 0:00:04]} 29. Qxe7 {[%clk 0:00:35]}  Bg7 {[%clk 0:00:01]} 30. e6 {[%clk 0:00:33]}  Rde8 {[%clk 0:00:01]} 31. Qh4 {[%clk 0:00:33]}  h6 {[%clk 0:00:01]} 32. e7 {[%clk 0:00:32]}  Rf7 {[%clk 0:00:01]} 33. Rc7 {[%clk 0:00:29]}  Qf6 {[%clk 0:00:01]} 34. Qe4 {[%clk 0:00:29]} 1-0


[Site "https://www.chess.com"]

[Event "Titled Tuesday Blitz March 08 Early 2022"]
[White "Derige Kane, Yan"]
[Black "Yandarbiev, Ruslan"]
[WhiteFideId "20665431"]
[BlackFideId "4115023"]
[WhiteElo "2169"]
[BlackElo "2102"]
[Result "0-1"]
[Round "04"]
[TimeControl "180+1"]
[Date "2022.03.09"]
[WhiteClock "0:02:21"]
[BlackClock "0:01:32"]

1. Nf3 {[%clk 0:03:00]}  Nf6 {[%clk 0:02:55]} 2. g3 {[%clk 0:03:01]}  g6 {[%clk 0:02:55]} 3. Bg2 {[%clk 0:03:02]}  Bg7 {[%clk 0:02:56]} 4. O-O {[%clk 0:03:03]}  O-O {[%clk 0:02:56]} 5. b3 {[%clk 0:03:03]}  a5 {[%clk 0:02:54]} 6. a3 {[%clk 0:03:03]}  d6 {[%clk 0:02:54]} 7. Bb2 {[%clk 0:03:04]}  e5 {[%clk 0:02:54]} 8. d3 {[%clk 0:03:04]}  Nc6 {[%clk 0:02:51]} 9. Nbd2 {[%clk 0:03:04]}  Re8 {[%clk 0:02:47]} 10. Rc1 {[%clk 0:03:04]}  d5 {[%clk 0:02:47]} 11. c4 {[%clk 0:03:05]}  d4 {[%clk 0:02:46]} 12. Re1 {[%clk 0:03:05]}  Bf5 {[%clk 0:02:41]} 13. Ng5 {[%clk 0:03:05]}  Qd7 {[%clk 0:02:36]} 14. Nge4 {[%clk 0:03:05]}  Nxe4 {[%clk 0:02:36]} 15. Nxe4 {[%clk 0:03:05]}  b6 {[%clk 0:02:32]} 16. c5 {[%clk 0:03:00]}  b5 {[%clk 0:02:32]} 17. a4 {[%clk 0:02:57]}  bxa4 {[%clk 0:02:25]} 18. bxa4 {[%clk 0:02:58]}  Bh3 {[%clk 0:02:23]} 19. Nd2 {[%clk 0:02:56]}  Bxg2 {[%clk 0:02:22]} 20. Kxg2 {[%clk 0:02:57]}  Nb4 {[%clk 0:02:22]} 21. Nc4 {[%clk 0:02:52]}  Qd5+ {[%clk 0:02:21]} 22. Kg1 {[%clk 0:02:50]}  Qxc5 {[%clk 0:02:22]} 23. e3 {[%clk 0:02:50]}  Qd5 {[%clk 0:02:11]} 24. e4 {[%clk 0:02:47]}  Qd7 {[%clk 0:02:12]} 25. f4 {[%clk 0:02:45]}  exf4 {[%clk 0:02:00]} 26. gxf4 {[%clk 0:02:45]}  f5 {[%clk 0:02:01]} 27. e5 {[%clk 0:02:45]}  Qd5 {[%clk 0:01:57]} 28. Qe2 {[%clk 0:02:43]}  Bh6 {[%clk 0:01:52]} 29. Rf1 {[%clk 0:02:42]}  Re6 {[%clk 0:01:49]} 30. Nd2 {[%clk 0:02:41]}  Rc6 {[%clk 0:01:42]} 31. Rxc6 {[%clk 0:02:41]}  Nxc6 {[%clk 0:01:43]} 32. Nc4 {[%clk 0:02:38]}  Rb8 {[%clk 0:01:41]} 33. Qf2 {[%clk 0:02:34]}  Nb4 {[%clk 0:01:37]} 34. Bxd4 {[%clk 0:02:23]}  Nxd3 {[%clk 0:01:35]} 35. Qe3 {[%clk 0:02:21]}  Qxc4 {[%clk 0:01:35]} 36. Rd1 {[%clk 0:02:21]}  Nxf4 {[%clk 0:01:32]} 0-1


[Site "https://www.chess.com"]

[Event "Titled Tuesday Blitz March 08 Early 2022"]
[White "Dilmukhametov, Artur"]
[Black "Sailer, Mike"]
[WhiteFideId "24179922"]
[BlackFideId "2012901"]
[WhiteElo "2237"]
[BlackElo "2109"]
[Result "0-1"]
[Round "04"]
[TimeControl "180+1"]
[Date "2022.03.09"]
[WhiteClock "0:00:35"]
[BlackClock "0:00:30"]

1. d4 {[%clk 0:02:59]}  d5 {[%clk 0:02:59]} 2. Nc3 {[%clk 0:02:57]}  Nf6 {[%clk 0:02:56]} 3. Bf4 {[%clk 0:02:56]}  c6 {[%clk 0:02:54]} 4. Nf3 {[%clk 0:02:54]}  Bf5 {[%clk 0:02:50]} 5. e3 {[%clk 0:02:51]}  e6 {[%clk 0:02:48]} 6. Bd3 {[%clk 0:02:48]}  Ne4 {[%clk 0:02:46]} 7. Nxe4 {[%clk 0:02:28]}  dxe4 {[%clk 0:02:39]} 8. Bc4 {[%clk 0:02:20]}  exf3 {[%clk 0:02:38]} 9. gxf3 {[%clk 0:02:21]}  Bd6 {[%clk 0:02:33]} 10. Bxd6 {[%clk 0:02:19]}  Qxd6 {[%clk 0:02:33]} 11. e4 {[%clk 0:02:20]}  Qb4+ {[%clk 0:02:32]} 12. Qd2 {[%clk 0:02:12]}  Qxd2+ {[%clk 0:02:21]} 13. Kxd2 {[%clk 0:02:08]}  Bg6 {[%clk 0:02:22]} 14. Rhg1 {[%clk 0:02:04]}  Nd7 {[%clk 0:02:21]} 15. Rad1 {[%clk 0:01:56]}  Nb6 {[%clk 0:02:21]} 16. b3 {[%clk 0:01:55]}  Nxc4+ {[%clk 0:02:21]} 17. bxc4 {[%clk 0:01:55]}  O-O-O {[%clk 0:02:20]} 18. Kc1 {[%clk 0:01:53]}  Rd7 {[%clk 0:02:10]} 19. d5 {[%clk 0:01:48]}  cxd5 {[%clk 0:02:09]} 20. cxd5 {[%clk 0:01:47]}  exd5 {[%clk 0:02:10]} 21. exd5 {[%clk 0:01:47]}  Rhd8 {[%clk 0:02:07]} 22. c4 {[%clk 0:01:47]}  b5 {[%clk 0:02:07]} 23. cxb5 {[%clk 0:01:44]}  Rxd5 {[%clk 0:02:07]} 24. Rxd5 {[%clk 0:01:44]}  Rxd5 {[%clk 0:02:07]} 25. a4 {[%clk 0:01:39]}  Rd4 {[%clk 0:02:07]} 26. a5 {[%clk 0:01:37]}  Rb4 {[%clk 0:02:00]} 27. Rg5 {[%clk 0:01:33]}  Kb7 {[%clk 0:01:51]} 28. Kd2 {[%clk 0:01:24]}  Ra4 {[%clk 0:01:38]} 29. a6+ {[%clk 0:01:18]}  Kb6 {[%clk 0:01:38]} 30. Kc3 {[%clk 0:01:18]}  Rf4 {[%clk 0:01:34]} 31. Rd5 {[%clk 0:01:08]}  Rxf3+ {[%clk 0:01:32]} 32. Kd4 {[%clk 0:01:08]}  Rd3+ {[%clk 0:01:31]} 33. Ke5 {[%clk 0:01:07]}  Rxd5+ {[%clk 0:01:31]} 34. Kxd5 {[%clk 0:01:07]}  Kxb5 {[%clk 0:01:32]} 35. Kd6 {[%clk 0:01:08]}  Kxa6 {[%clk 0:01:31]} 36. Ke7 {[%clk 0:01:06]}  Kb5 {[%clk 0:01:31]} 37. Kf8 {[%clk 0:01:04]}  a5 {[%clk 0:01:32]} 38. Kxg7 {[%clk 0:01:04]}  a4 {[%clk 0:01:32]} 39. Kf6 {[%clk 0:01:04]}  a3 {[%clk 0:01:32]} 40. h4 {[%clk 0:01:05]}  a2 {[%clk 0:01:30]} 41. f4 {[%clk 0:01:06]}  a1=Q+ {[%clk 0:01:28]} 42. Kg5 {[%clk 0:01:04]}  Qg1+ {[%clk 0:01:26]} 43. Kh6 {[%clk 0:01:03]}  Qg4 {[%clk 0:01:23]} 44. f5 {[%clk 0:00:59]}  Bxf5 {[%clk 0:01:01]} 45. h5 {[%clk 0:00:55]}  Bg6 {[%clk 0:00:58]} 46. Kg7 {[%clk 0:00:51]}  Bxh5+ {[%clk 0:00:53]} 47. Kh8 {[%clk 0:00:49]}  f5 {[%clk 0:00:39]} 48. Kxh7 {[%clk 0:00:45]}  Qg6+ {[%clk 0:00:36]} 49. Kh8 {[%clk 0:00:43]}  Qf6+ {[%clk 0:00:33]} 50. Kh7 {[%clk 0:00:38]}  Bg6+ {[%clk 0:00:29]} 51. Kg8 {[%clk 0:00:36]}  Qf7+ {[%clk 0:00:29]} 52. Kh8 {[%clk 0:00:35]}  Qh7# {[%clk 0:00:30]} 0-1


[Site "https://www.chess.com"]

[Event "Titled Tuesday Blitz March 08 Early 2022"]
[White "Dwilewicz, Katarzyna"]
[Black "Domingo Nunez, Alejandro"]
[WhiteFideId "1148486"]
[BlackFideId "22245561"]
[WhiteElo "1907"]
[BlackElo "2215"]
[Result "0-1"]
[Round "04"]
[TimeControl "180+1"]
[Date "2022.03.09"]
[WhiteClock "0:00:03"]
[BlackClock "0:00:17"]

1. e4 {[%clk 0:03:00]}  c6 {[%clk 0:02:56]} 2. d4 {[%clk 0:02:57]}  g6 {[%clk 0:02:55]} 3. Nf3 {[%clk 0:02:51]}  Bg7 {[%clk 0:02:55]} 4. h3 {[%clk 0:02:50]}  d5 {[%clk 0:02:56]} 5. Nc3 {[%clk 0:02:43]}  dxe4 {[%clk 0:02:56]} 6. Nxe4 {[%clk 0:02:41]}  Nf6 {[%clk 0:02:57]} 7. Nxf6+ {[%clk 0:02:41]}  exf6 {[%clk 0:02:58]} 8. c3 {[%clk 0:02:39]}  O-O {[%clk 0:02:57]} 9. Be2 {[%clk 0:02:30]}  a5 {[%clk 0:02:57]} 10. a4 {[%clk 0:02:28]}  Na6 {[%clk 0:02:57]} 11. O-O {[%clk 0:02:28]}  Nc7 {[%clk 0:02:57]} 12. Re1 {[%clk 0:02:27]}  Nd5 {[%clk 0:02:57]} 13. Bd3 {[%clk 0:02:25]}  Be6 {[%clk 0:02:57]} 14. Bd2 {[%clk 0:02:20]}  Re8 {[%clk 0:02:56]} 15. Qc2 {[%clk 0:02:12]}  Qd7 {[%clk 0:02:56]} 16. b3 {[%clk 0:02:01]}  Bf8 {[%clk 0:02:55]} 17. Bc4 {[%clk 0:01:51]}  Bd6 {[%clk 0:02:54]} 18. Bh6 {[%clk 0:01:38]}  b5 {[%clk 0:02:38]} 19. axb5 {[%clk 0:01:35]}  cxb5 {[%clk 0:02:39]} 20. Bd3 {[%clk 0:01:04]}  Rac8 {[%clk 0:02:28]} 21. Bd2 {[%clk 0:00:57]}  Nxc3 {[%clk 0:01:59]} 22. Bxc3 {[%clk 0:00:55]}  Bb4 {[%clk 0:01:59]} 23. Bxb4 {[%clk 0:00:32]}  Rxc2 {[%clk 0:02:00]} 24. Bxc2 {[%clk 0:00:32]}  axb4 {[%clk 0:02:00]} 25. Rad1 {[%clk 0:00:26]}  Bd5 {[%clk 0:01:57]} 26. Nd2 {[%clk 0:00:22]}  Rc8 {[%clk 0:01:53]} 27. Bd3 {[%clk 0:00:20]}  Rc3 {[%clk 0:01:53]} 28. Re3 {[%clk 0:00:18]}  Kg7 {[%clk 0:01:49]} 29. Ne4 {[%clk 0:00:14]}  Bxe4 {[%clk 0:01:32]} 30. Bxe4 {[%clk 0:00:15]}  Rxe3 {[%clk 0:01:32]} 31. fxe3 {[%clk 0:00:16]}  Qe6 {[%clk 0:01:32]} 32. Bf3 {[%clk 0:00:11]}  Qxe3+ {[%clk 0:01:32]} 33. Kf1 {[%clk 0:00:10]}  Qxb3 {[%clk 0:01:21]} 34. d5 {[%clk 0:00:11]}  Qc4+ {[%clk 0:01:22]} 35. Ke1 {[%clk 0:00:07]}  Qc3+ {[%clk 0:01:20]} 36. Kf1 {[%clk 0:00:07]}  Qc4+ {[%clk 0:01:18]} 37. Ke1 {[%clk 0:00:07]}  Qc7 {[%clk 0:01:14]} 38. d6 {[%clk 0:00:07]}  Qd7 {[%clk 0:01:15]} 39. Bc6 {[%clk 0:00:03]}  Qxc6 {[%clk 0:01:11]} 40. d7 {[%clk 0:00:03]}  Qe6+ {[%clk 0:01:09]} 41. Kf1 {[%clk 0:00:03]}  Qf5+ {[%clk 0:00:39]} 42. Ke1 {[%clk 0:00:04]}  b3 {[%clk 0:00:19]} 43. d8=Q {[%clk 0:00:04]}  b2 {[%clk 0:00:19]} 44. Qd2 {[%clk 0:00:02]}  b1=Q {[%clk 0:00:19]} 45. Rxb1 {[%clk 0:00:03]}  Qxb1+ {[%clk 0:00:20]} 46. Kf2 {[%clk 0:00:03]}  b4 {[%clk 0:00:19]} 47. h4 {[%clk 0:00:03]}  h5 {[%clk 0:00:18]} 48. g3 {[%clk 0:00:03]}  b3 {[%clk 0:00:18]} 49. g4 {[%clk 0:00:03]}  Qa2 {[%clk 0:00:17]} 0-1


[Site "https://www.chess.com"]

[Event "Titled Tuesday Blitz March 08 Early 2022"]
[White "Einarsson, Halldor Gretar"]
[Black "Dolzhykova, Kateryna"]
[WhiteFideId "2300150"]
[BlackFideId "14113414"]
[WhiteElo "2114"]
[BlackElo "2184"]
[Result "0-1"]
[Round "04"]
[TimeControl "180+1"]
[Date "2022.03.09"]
[WhiteClock "0:00:01"]
[BlackClock "0:00:08"]

1. d4 {[%clk 0:02:35]}  Nf6 {[%clk 0:02:59]} 2. c4 {[%clk 0:02:35]}  e6 {[%clk 0:02:58]} 3. g3 {[%clk 0:02:33]}  d5 {[%clk 0:02:57]} 4. Nf3 {[%clk 0:02:33]}  Be7 {[%clk 0:02:50]} 5. Bg2 {[%clk 0:02:33]}  O-O {[%clk 0:02:49]} 6. O-O {[%clk 0:02:34]}  c6 {[%clk 0:02:41]} 7. Qc2 {[%clk 0:02:28]}  b6 {[%clk 0:02:37]} 8. Nc3 {[%clk 0:02:08]}  Ba6 {[%clk 0:02:35]} 9. cxd5 {[%clk 0:02:03]}  cxd5 {[%clk 0:02:36]} 10. Re1 {[%clk 0:02:02]}  Nc6 {[%clk 0:02:30]} 11. a3 {[%clk 0:02:00]}  Rc8 {[%clk 0:02:28]} 12. Bf4 {[%clk 0:01:56]}  Bd6 {[%clk 0:02:05]} 13. Bg5 {[%clk 0:01:40]}  h6 {[%clk 0:02:03]} 14. Bd2 {[%clk 0:01:33]}  Qd7 {[%clk 0:01:38]} 15. Rad1 {[%clk 0:01:32]}  Ne4 {[%clk 0:01:25]} 16. Qb1 {[%clk 0:01:12]}  Nxc3 {[%clk 0:01:21]} 17. Bxc3 {[%clk 0:01:09]}  Na5 {[%clk 0:01:21]} 18. e4 {[%clk 0:01:02]}  dxe4 {[%clk 0:01:21]} 19. Ne5 {[%clk 0:01:01]}  Bxe5 {[%clk 0:01:15]} 20. dxe5 {[%clk 0:01:00]}  Bd3 {[%clk 0:01:14]} 21. Bxe4 {[%clk 0:00:56]}  Bxb1 {[%clk 0:01:13]} 22. Rxd7 {[%clk 0:00:55]}  Bxe4 {[%clk 0:01:13]} 23. Rxe4 {[%clk 0:00:54]}  Nc6 {[%clk 0:01:13]} 24. Rf4 {[%clk 0:00:35]}  b5 {[%clk 0:00:43]} 25. h4 {[%clk 0:00:35]}  a5 {[%clk 0:00:42]} 26. Kg2 {[%clk 0:00:32]}  b4 {[%clk 0:00:20]} 27. axb4 {[%clk 0:00:31]}  axb4 {[%clk 0:00:21]} 28. Bxb4 {[%clk 0:00:30]}  Rfd8 {[%clk 0:00:21]} 29. Rxd8+ {[%clk 0:00:20]}  Rxd8 {[%clk 0:00:22]} 30. Bd6 {[%clk 0:00:19]}  Rd7 {[%clk 0:00:19]} 31. Rc4 {[%clk 0:00:18]}  Ne7 {[%clk 0:00:14]} 32. f4 {[%clk 0:00:16]}  Nd5 {[%clk 0:00:14]} 33. b4 {[%clk 0:00:14]}  Rb7 {[%clk 0:00:14]} 34. Kf3 {[%clk 0:00:12]}  g6 {[%clk 0:00:13]} 35. Bc5 {[%clk 0:00:08]}  Rb8 {[%clk 0:00:13]} 36. Rd4 {[%clk 0:00:06]}  Ra8 {[%clk 0:00:13]} 37. Ke4 {[%clk 0:00:05]}  Ra3 {[%clk 0:00:12]} 38. Rd3 {[%clk 0:00:05]}  Ra1 {[%clk 0:00:12]} 39. Kd4 {[%clk 0:00:03]}  Rb1 {[%clk 0:00:10]} 40. Kc4 {[%clk 0:00:02]}  h5 {[%clk 0:00:09]} 41. Kb5 {[%clk 0:00:01]}  Kg7 {[%clk 0:00:08]} 0-1


[Site "https://www.chess.com"]

[Event "Titled Tuesday Blitz March 08 Early 2022"]
[White "Fajdetic, Hrvoje"]
[Black "Brunner, Nicolas"]
[WhiteFideId "14501945"]
[BlackFideId "620246"]
[WhiteElo "2172"]
[BlackElo "2372"]
[Result "0-1"]
[Round "04"]
[TimeControl "180+1"]
[Date "2022.03.09"]
[WhiteClock "0:00:52"]
[BlackClock "0:01:39"]

1. d4 {[%clk 0:02:54]}  d5 {[%clk 0:02:59]} 2. Bf4 {[%clk 0:02:54]}  e6 {[%clk 0:02:56]} 3. e3 {[%clk 0:02:54]}  Nf6 {[%clk 0:02:53]} 4. Nf3 {[%clk 0:02:53]}  c5 {[%clk 0:02:52]} 5. Nc3 {[%clk 0:02:53]}  a6 {[%clk 0:02:48]} 6. Ne2 {[%clk 0:02:50]}  Nc6 {[%clk 0:02:47]} 7. c3 {[%clk 0:02:50]}  Bd6 {[%clk 0:02:47]} 8. Bg3 {[%clk 0:02:40]}  O-O {[%clk 0:02:47]} 9. Nf4 {[%clk 0:02:39]}  b6 {[%clk 0:02:44]} 10. Bd3 {[%clk 0:02:38]}  Bb7 {[%clk 0:02:44]} 11. Bh4 {[%clk 0:02:13]}  Re8 {[%clk 0:02:19]} 12. Nh5 {[%clk 0:02:09]}  Be7 {[%clk 0:02:18]} 13. Ne5 {[%clk 0:02:00]}  Nxe5 {[%clk 0:02:07]} 14. dxe5 {[%clk 0:01:44]}  Nxh5 {[%clk 0:02:03]} 15. Bxe7 {[%clk 0:01:41]}  Qxe7 {[%clk 0:02:01]} 16. Qxh5 {[%clk 0:01:40]}  h6 {[%clk 0:02:00]} 17. f4 {[%clk 0:01:30]}  d4 {[%clk 0:01:56]} 18. Rg1 {[%clk 0:01:16]}  dxe3 {[%clk 0:01:50]} 19. g4 {[%clk 0:01:14]}  Rad8 {[%clk 0:01:47]} 20. g5 {[%clk 0:00:57]}  Rxd3 {[%clk 0:01:41]} 21. gxh6 {[%clk 0:00:56]}  g6 {[%clk 0:01:40]} 22. Rxg6+ {[%clk 0:00:56]}  fxg6 {[%clk 0:01:40]} 23. Qxg6+ {[%clk 0:00:57]}  Kh8 {[%clk 0:01:40]} 24. Qxd3 {[%clk 0:00:55]}  Qh4+ {[%clk 0:01:39]} 25. Kd1 {[%clk 0:00:52]}  Rd8 {[%clk 0:01:39]} 0-1


[Site "https://www.chess.com"]